bitfinex/quotes_BTCUSD_20250711
["timestamp","ask_amount","ask_price","bid_price","bid_amount"]
[1752199636746,1.54691283,115930.0,115920.0,0.02604768]
[1752199636965,1.19353394,115930.0,115920.0,0.02604768]
[1752199637181,1.4614829,115930.0,115920.0,0.02604768]
[1752199638027,1.4614829,115930.0,115920.0,0.02504768]
[1752199638248,1.4634829,115930.0,115920.0,0.02504768]
[1752199638458,1.4866829,115930.0,115920.0,0.02504768]
[1752199639309,1.52337165,115930.0,115920.0,0.02504768]
[1752199639859,1.52237165,115930.0,115920.0,0.02504768]
[1752199640276,1.52437165,115930.0,115920.0,0.02504768]
[1752199640516,1.52437165,115930.0,115900.0,0.0488]
[1752199640517,0.20434275,115910.0,115900.0,0.0488]
[1752199640727,0.48037275,115910.0,115900.0,0.04991]
[1752199640927,0.56900268,115910.0,115900.0,0.04991]
[1752199641134,0.83695164,115910.0,115900.0,0.07384768]
[1752199641337,0.56900268,115910.0,115900.0,0.07384768]
[1752199641506,0.56900268,115910.0,115900.0,0.07495768]
[1752199641984,0.81900268,115910.0,115900.0,0.07595768]
[1752199643527,0.82000268,115910.0,115900.0,0.07695768]
[1752199648480,0.82000268,115910.0,115900.0,0.07584768]
[1752199648686,1.09727381,115910.0,115900.0,0.05064768]
[1752199648890,1.09727381,115910.0,115900.0,0.002]
[1752199649104,1.08795164,115910.0,115900.0,0.002]
[1752199649544,1.11235164,115910.0,115900.0,0.002]
[1752199649963,1.45235164,115910.0,115900.0,0.02704768]
[1752199651419,1.18440268,115910.0,115900.0,0.02704768]
[1752199651592,1.45235164,115910.0,115900.0,0.02704768]
[1752199652229,1.53778157,115910.0,115900.0,0.02704768]
[1752199652610,1.45235164,115910.0,115900.0,0.02704768]
[1752199653728,1.18440268,115910.0,115900.0,0.02704768]
[1752199653929,1.45235164,115910.0,115900.0,0.02704768]
[1752199656426,1.18440268,115910.0,115900.0,0.02704768]
[1752199656647,1.45235164,115910.0,115900.0,0.02704768]
[1752199656832,1.02268268,115910.0,115900.0,0.07715768]
[1752199657467,1.02268268,115910.0,115900.0,0.05064768]
[1752199657668,1.09307232,115910.0,115900.0,0.05064768]
[1752199658451,1.02268268,115910.0,115900.0,0.05064768]
[1752199660116,1.29063164,115910.0,115900.0,0.05064768]
[1752199660714,1.02268268,115910.0,115900.0,0.05064768]
[1752199662479,1.29063164,115910.0,115900.0,0.05064768]
[1752199664304,1.29063164,115910.0,115900.0,0.02704768]
[1752199664305,1.31603164,115910.0,115900.0,0.02704768]
[1752199664557,1.37785622,115910.0,115900.0,0.02704768]
[1752199666061,1.40095622,115910.0,115900.0,0.02704768]
[1752199666642,1.39995622,115910.0,115900.0,0.02504768]
[1752199666846,1.40195622,115910.0,115900.0,0.02504768]
[1752199667069,1.40395622,115910.0,115900.0,0.02504768]
[1752199667430,0.2043755,115890.0,115880.0,0.07164768]
[1752199667614,0.56576543,115890.0,115880.0,0.07280738]
[1752199667817,0.56791543,115890.0,115880.0,0.07280738]
[1752199668025,0.56791543,115890.0,115880.0,0.07169738]
[1752199668934,0.81891543,115890.0,115880.0,0.07269738]
[1752199669490,0.90434536,115890.0,115880.0,0.07269738]
[1752199669730,1.08686439,115890.0,115880.0,0.0010497]
[1752199669944,1.42686439,115890.0,115880.0,0.02609738]
[1752199670580,1.42686439,115890.0,115880.0,0.0010497]
[1752199670758,1.45096439,115890.0,115880.0,0.0010497]
[1752199671215,1.18301543,115890.0,115880.0,0.0010497]
[1752199671418,1.45096439,115890.0,115880.0,0.0010497]
[1752199671993,1.53639432,115890.0,115880.0,0.02709738]
[1752199672423,1.45096439,115890.0,115880.0,0.0020497]
[1752199672964,1.44996439,115890.0,115880.0,0.0010497]
[1752199673165,1.47426439,115890.0,115880.0,0.0010497]
[1752199673374,1.47526439,115890.0,115880.0,4.97e-05]
[1752199673578,1.82864328,115890.0,115880.0,0.02509738]
[1752199673781,1.82964328,115890.0,115880.0,4.97e-05]
[1752199674181,1.83164328,115890.0,115880.0,4.97e-05]
[1752199676338,0.19576264,115880.0,115870.0,0.02504768]
[1752199676540,0.55927829,115870.0,115860.0,0.0056398]
[1752199676745,1.18999718,115870.0,115860.0,0.00568942]
[1752199677590,1.18999718,115870.0,115860.0,0.02180615]
[1752199677985,1.43999718,115870.0,115860.0,0.02180615]
[1752199678201,1.43999718,115870.0,115860.0,0.04685383]
[1752199678333,1.52542711,115870.0,115860.0,0.00568942]
[1752199678546,1.52542711,115870.0,115860.0,0.0307371]
[1752199678953,1.52542711,115870.0,115860.0,0.00568942]
[1752199679146,1.53417198,115870.0,115860.0,0.0307371]
[1752199679358,1.18379309,115870.0,115860.0,0.0307371]
[1752199679557,1.47796138,115870.0,115860.0,0.0307371]
[1752199680157,1.21001242,115870.0,115860.0,0.00568942]
[1752199680340,1.47796138,115870.0,115860.0,0.0307371]
[1752199681332,0.93773242,115870.0,115860.0,0.0307371]
[1752199681537,1.05015242,115870.0,115860.0,0.0769371]
[1752199681945,1.12115148,115870.0,115860.0,0.0537371]
[1752199682360,1.05015242,115870.0,115860.0,0.0537371]
[1752199682562,1.05015242,115870.0,115860.0,0.0769371]
[1752199682883,1.05015242,115870.0,115860.0,0.0537371]
[1752199687085,1.31810138,115870.0,115860.0,0.0537371]
[1752199688205,1.31810138,115870.0,115860.0,0.0307371]
[1752199688386,1.40353131,115870.0,115860.0,0.0307371]
[1752199690041,1.40353131,115870.0,115860.0,0.0550371]
[1752199691653,1.13558235,115870.0,115860.0,0.0550371]
[1752199691860,1.31810138,115870.0,115860.0,0.0550371]
[1752199692284,1.05015242,115870.0,115860.0,0.0550371]
[1752199692484,1.31810138,115870.0,115860.0,0.0550371]
[1752199695473,1.31810138,115870.0,115860.0,0.0307371]
[1752199695709,1.40353131,115870.0,115860.0,0.0307371]
[1752199697380,1.31810138,115870.0,115860.0,0.0307371]
[1752199697975,1.31810138,115870.0,115860.0,0.0550371]
[1752199698174,1.05011242,115870.0,115860.0,0.0550371]
[1752199698335,1.31806138,115870.0,115860.0,0.0550371]
[1752199700439,1.31806138,115870.0,115860.0,0.0307371]
[1752199700642,1.31806138,115870.0,115860.0,0.00568942]
[1752199700836,1.31806138,115870.0,115860.0,0.0307371]
[1752199701163,1.31806138,115870.0,115860.0,0.00568942]
[1752199701372,1.31806138,115870.0,115860.0,0.0307371]
[1752199701774,1.31806138,115870.0,115860.0,0.00568942]
[1752199701991,1.31806138,115870.0,115860.0,0.0307371]
[1752199704478,1.33555889,115870.0,115860.0,0.0307371]
[1752199704930,1.31806138,115870.0,115860.0,0.0307371]
[1752199705657,1.05011242,115870.0,115860.0,0.0307371]
[1752199705876,1.31806138,115870.0,115860.0,0.0540371]
[1752199710118,1.31806138,115870.0,115860.0,0.0307371]
[1752199710320,1.31806138,115870.0,115860.0,0.00568942]
[1752199710478,1.31806138,115870.0,115860.0,0.0307371]
[1752199711230,1.36539119,115870.0,115860.0,0.0307371]
[1752199711543,1.31806138,115870.0,115860.0,0.0307371]
[1752199712995,1.34216138,115870.0,115860.0,0.0307371]
[1752199714644,1.36566138,115870.0,115860.0,0.0307371]
[1752199715255,1.36566138,115870.0,115860.0,0.00568942]
[1752199715478,1.65951434,115870.0,115860.0,0.00568942]
[1752199715678,1.47699531,115870.0,115860.0,1e-08]
[1752199715879,1.74494427,115870.0,115860.0,1e-08]
[1752199716125,1.47699531,115870.0,115860.0,1e-08]
[1752199716751,0.18125308,115860.0,115850.0,0.02504768]
[1752199716953,0.21880958,115850.0,115840.0,0.02594509]
[1752199717175,0.7947984,115850.0,115840.0,0.02594509]
[1752199717375,0.7979784,115850.0,115840.0,0.02594509]
[1752199717674,0.8208784,115850.0,115840.0,0.02594509]
[1752199718284,0.8218784,115850.0,115840.0,0.02594509]
[1752199718900,1.0718784,115850.0,115840.0,0.02594509]
[1752199719305,1.4118784,115850.0,115840.0,0.00089741]
[1752199719634,1.14392944,115850.0,115840.0,0.00089741]
[1752199719843,1.4138784,115850.0,115840.0,0.00089741]
[1752199720714,1.4397884,115850.0,115840.0,0.00089741]
[1752199721482,0.19582522,115840.0,115830.0,0.03108748]
[1752199721683,0.82472411,115840.0,115830.0,0.03123673]
[1752199721935,0.90335554,115840.0,115830.0,0.03123673]
[1752199722446,0.92765554,115840.0,115830.0,0.03123673]
[1752199722624,0.92865554,115840.0,115830.0,0.0226043]
[1752199722825,1.17865554,115840.0,115830.0,0.03878106]
[1752199723040,0.83207515,115840.0,115830.0,0.03014863]
[1752199723241,1.47572411,115840.0,115830.0,0.03014863]
[1752199723407,1.47572411,115840.0,115830.0,0.0215162]
[1752199723610,1.47572411,115840.0,115830.0,0.0468162]
[1752199723809,1.20777515,115840.0,115830.0,0.0719162]
[1752199724019,1.49308493,115840.0,115830.0,0.0719162]
[1752199724220,0.95477597,115840.0,115830.0,0.0225162]
[1752199724437,1.07269515,115840.0,115830.0,0.0716162]
[1752199724829,0.93741515,115840.0,115830.0,0.0727262]
[1752199725082,1.07269515,115840.0,115830.0,0.0727262]
[1752199725288,0.67269515,115840.0,115830.0,0.0727262]
[1752199725935,0.69860315,115840.0,115830.0,0.0727262]
[1752199726592,0.73476423,115840.0,115830.0,0.0727262]
[1752199726760,0.70885623,115840.0,115830.0,0.0727262]
[1752199727212,0.70885623,115840.0,115830.0,0.0716162]
[1752199728564,0.70885623,115840.0,115820.0,0.0004]
[1752199728565,0.53584087,115830.0,115820.0,0.0004]
[1752199728769,1.56777865,115830.0,115820.0,0.0004]
[1752199728945,1.56777865,115830.0,115790.0,0.0290398]
[1752199728946,0.19588784,115800.0,115790.0,0.0290398]
[1752199729187,0.55405777,115800.0,115790.0,0.02918914]
[1752199729393,0.18136265,115790.0,115780.0,0.0234]
[1752199729601,0.18136265,115790.0,115780.0,0.02451]
[1752199729602,0.53759258,115790.0,115780.0,0.02451]
[1752199730018,0.78759258,115790.0,115780.0,0.02451]
[1752199730630,0.78859258,115790.0,115780.0,0.02451]
[1752199730837,0.78859258,115790.0,115780.0,0.02651]
[1752199731666,0.78859258,115790.0,115780.0,0.05071]
[1752199731983,0.79184258,115790.0,115780.0,0.05071]
[1752199732925,0.87931251,115790.0,115780.0,0.05071]
[1752199733125,0.87931251,115790.0,115780.0,0.04207821]
[1752199733332,0.79388258,115790.0,115780.0,0.04207821]
[1752199733580,0.79388258,115790.0,115780.0,0.03344642]
[1752199733721,0.81974688,115790.0,115780.0,0.03344642]
[1752199733904,0.81974688,115790.0,115780.0,0.02481463]
[1752199734307,0.81974688,115790.0,115780.0,0.01617928]
[1752199734755,0.81974688,115790.0,115780.0,0.00754393]
[1752199735219,0.19591917,115780.0,115770.0,0.26834896]
[1752199735408,0.5521091,115780.0,115770.0,0.26834896]
[1752199735607,0.5521091,115780.0,115770.0,0.0004]
[1752199735812,0.5521091,115780.0,115770.0,0.26834896]
[1752199736708,0.5531091,115780.0,115770.0,0.26834896]
[1752199736923,0.8031091,115780.0,115770.0,0.0034]
[1752199737074,0.8031091,115780.0,115770.0,0.29494896]
[1752199738054,0.89382903,115780.0,115770.0,0.027]
[1752199738175,0.19595051,115760.0,115750.0,0.0302398]
[1752199738376,0.19595051,115760.0,115750.0,0.0070398]
[1752199738377,0.83096402,115760.0,115750.0,0.0070398]
[1752199738603,0.18142532,115750.0,115740.0,0.0004]
[1752199738863,0.54306525,115750.0,115730.0,0.0232]
[1752199739071,0.55245178,115740.0,115730.0,0.0232]
[1752199739612,0.55245178,115740.0,115720.0,0.29144896]
[1752199739613,0.19599753,115730.0,115720.0,0.29144896]
[1752199739819,0.19599753,115730.0,115720.0,0.29194692]
[1752199740037,0.46711753,115730.0,115720.0,0.02399796]
[1752199740247,0.55254746,115730.0,115720.0,0.00089796]
[1752199740452,0.55154746,115730.0,115720.0,0.0169683]
[1752199740950,1.22923839,115730.0,115720.0,0.00833295]
[1752199741156,1.14380846,115730.0,115720.0,0.00833295]
[1752199741360,0.18147236,115720.0,115710.0,0.0060398]
[1752199741565,0.54351229,115720.0,115710.0,0.0060398]
[1752199741977,0.80405314,115720.0,115710.0,0.0060398]
[1752199742795,0.79876314,115720.0,115710.0,0.27398876]
[1752199743000,0.3672526,115720.0,115710.0,0.59033772]
[1752199743207,0.29910538,115720.0,115710.0,0.59033772]
[1752199743414,0.29046399,115720.0,115710.0,0.32238876]
[1752199743635,0.25,115720.0,115710.0,0.32238876]
[1752199743811,0.26728197,115720.0,115710.0,0.59033772]
[1752199743985,0.27592321,115720.0,115710.0,0.59033772]
[1752199744188,0.46903711,115720.0,115710.0,0.32238876]
[1752199744388,0.4431139,115720.0,115710.0,0.32238876]
[1752199744588,0.45465475,115720.0,115710.0,0.32238876]
[1752199744799,0.45665475,115720.0,115710.0,0.32238876]
[1752199745482,0.44801336,115720.0,115710.0,0.32238876]
[1752199745702,0.53344329,115720.0,115710.0,0.0060398]
[1752199745903,0.53344329,115720.0,115710.0,0.27398876]
[1752199746467,0.53444329,115720.0,115710.0,0.27398876]
[1752199746668,0.37025364,115720.0,115710.0,0.27398876]
[1752199746868,0.39576557,115720.0,115710.0,0.32338876]
[1752199747079,0.28482282,115720.0,115710.0,0.32338876]
[1752199747284,0.46629578,115720.0,115710.0,0.0554398]
[1752199747530,0.46629578,115720.0,115710.0,0.32338876]
[1752199748247,0.45765468,115720.0,115710.0,0.0554398]
[1752199748449,0.45765468,115720.0,115710.0,0.32338876]
[1752199748794,0.44901336,115720.0,115710.0,0.29808876]
[1752199748992,0.44901336,115720.0,115710.0,0.40974876]
[1752199748993,0.45430336,115720.0,115710.0,0.40974876]
[1752199749228,0.45430336,115720.0,115710.0,0.1417998]
[1752199749967,0.45330336,115720.0,115710.0,0.1417998]
[1752199750360,0.53873329,115720.0,115710.0,0.1416798]
[1752199750658,0.53873329,115720.0,115710.0,0.0060398]
[1752199750882,0.80668225,115720.0,115710.0,0.0060398]
[1752199751159,0.53873329,115720.0,115710.0,0.0060398]
[1752199751317,0.85722512,115720.0,115710.0,0.0060398]
[1752199751523,0.88262512,115720.0,115710.0,0.0060398]
[1752199752749,1.15382512,115720.0,115710.0,0.0060398]
[1752199753322,0.88587616,115720.0,115710.0,0.02206941]
[1752199753518,1.22587616,115720.0,115710.0,0.01342919]
[1752199753726,1.49382512,115720.0,115710.0,0.01342919]
[1752199753937,1.49382512,115720.0,115710.0,0.00478897]
[1752199754135,1.22587616,115720.0,115710.0,0.00478897]
[1752199754337,0.20468724,115700.0,115690.0,0.26794896]
[1752199754539,0.29011717,115700.0,115690.0,0.26794896]
[1752199754760,0.02593001,115690.0,115680.0,0.45666876]
[1752199754975,0.03457365,115690.0,115680.0,0.72461772]
[1752199755155,0.04321736,115690.0,115680.0,0.71897792]
[1752199755760,0.20745003,115690.0,115680.0,0.71897792]
[1752199755963,0.44016313,115690.0,115680.0,0.42727501]
[1752199756615,0.43916313,115690.0,115680.0,0.29183501]
[1752199756762,0.43916313,115690.0,115680.0,0.42727501]
[1752199757146,0.44016313,115690.0,115680.0,0.42727501]
[1752199757605,0.43916313,115690.0,115680.0,0.43027501]
[1752199757877,0.26728697,115690.0,115680.0,0.69822397]
[1752199758086,0.27693016,115690.0,115680.0,0.72332397]
[1752199758287,0.27679234,115690.0,115680.0,0.72332397]
[1752199758806,0.28543612,115690.0,115680.0,0.72032397]
[1752199759049,0.28543612,115690.0,115680.0,0.72132397]
[1752199760257,0.26814893,115690.0,115680.0,0.18542605]
[1752199760433,0.27679234,115690.0,115680.0,0.72132397]
[1752199761255,0.26814863,115690.0,115680.0,0.72132397]
[1752199761436,0.27679234,115690.0,115680.0,0.72132397]
[1752199761651,0.26814863,115690.0,115680.0,0.72132397]
[1752199761846,0.27679234,115690.0,115680.0,0.72132397]
[1752199762083,0.2681481,115690.0,115680.0,0.72132397]
[1752199762440,0.25777875,115690.0,115680.0,0.72132397]
[1752199763046,0.24049238,115690.0,115680.0,0.72132397]
[1752199763859,0.251,115690.0,115680.0,0.72132397]
[1752199766444,0.24063142,115690.0,115680.0,0.73743838]
[1752199769434,0.24063142,115690.0,115680.0,0.73715838]
[1752199769595,0.24927461,115690.0,115680.0,0.73715838]
[1752199769799,0.24063142,115690.0,115680.0,0.73715838]
[1752199776438,0.23026269,115690.0,115680.0,0.73715838]
[1752199777554,0.23026269,115690.0,115680.0,0.81427937]
[1752199777758,0.25,115690.0,115680.0,0.81427937]
[1752199778729,0.26167319,115690.0,115680.0,0.76537937]
[1752199779142,0.25303,115690.0,115680.0,0.09432145]
[1752199779262,0.27031675,115690.0,115680.0,0.28514942]
[1752199779470,0.28101039,115690.0,115680.0,0.28514942]
[1752199779670,0.27236675,115690.0,115680.0,0.68825838]
[1752199779874,0.26167326,115690.0,115680.0,0.68825838]
[1752199780277,0.27031667,115690.0,115680.0,0.68825838]
[1752199780724,0.27896023,115690.0,115680.0,0.68825838]
[1752199781147,0.27896023,115690.0,115680.0,0.6883298]
[1752199781440,0.27031667,115690.0,115680.0,0.76545079]
[1752199782063,0.27896023,115690.0,115680.0,0.76545079]
[1752199782407,0.27031667,115690.0,115680.0,0.76545079]
[1752199782543,0.27896016,115690.0,115680.0,0.76545079]
[1752199782750,0.27031667,115690.0,115680.0,0.76545079]
[1752199783057,0.27031667,115690.0,115680.0,0.76545259]
[1752199783264,0.27896023,115690.0,115680.0,0.76545259]
[1752199783466,0.28101023,115690.0,115680.0,0.76545259]
[1752199783840,0.47888646,115690.0,115680.0,0.49750363]
[1752199784041,0.50428646,115690.0,115680.0,0.6883316]
[1752199784376,0.50428646,115690.0,115680.0,0.42038264]
[1752199784377,0.49564305,115690.0,115680.0,0.42038264]
[1752199784617,0.48699949,115690.0,115680.0,0.42038264]
[1752199786885,0.31412371,115690.0,115680.0,0.42038264]
[1752199787183,0.31412371,115690.0,115680.0,0.6883316]
[1752199787389,0.3227672,115690.0,115680.0,0.6883316]
[1752199788635,0.33141031,115690.0,115680.0,0.6883316]
[1752199788834,0.26372319,115690.0,115680.0,0.15243368]
[1752199789047,0.27031645,115690.0,115680.0,0.6883316]
[1752199789262,0.27895986,115690.0,115680.0,0.6883316]
[1752199789421,0.27238645,115690.0,115680.0,0.6883316]
[1752199789785,0.2551,115690.0,115680.0,0.6883316]
[1752199789959,0.2551,115690.0,115680.0,0.15243368]
[1752199790122,0.26374319,115690.0,115680.0,0.6883316]
[1752199790327,0.25303,115690.0,115680.0,0.6883316]
[1752199790546,0.27031645,115690.0,115680.0,0.6883316]
[1752199790746,0.29728645,115690.0,115680.0,0.6883316]
[1752199791069,0.26374311,115690.0,115680.0,0.6883316]
[1752199791469,0.25303,115690.0,115680.0,0.6883316]
[1752199792403,0.25303,115690.0,115680.0,0.01727368]
[1752199792615,0.25303,115690.0,115680.0,0.6883316]
[1752199792843,0.27031675,115690.0,115680.0,0.6883316]
[1752199793235,0.27238675,115690.0,115680.0,0.6883316]
[1752199793654,0.28103039,115690.0,115680.0,0.6883316]
[1752199793871,0.28103031,115690.0,115680.0,0.6883316]
[1752199794315,0.27238675,115690.0,115680.0,0.6883316]
[1752199795191,0.30593039,115690.0,115680.0,0.6883316]
[1752199795709,0.29728675,115690.0,115680.0,0.6883316]
[1752199796002,0.30593039,115690.0,115680.0,0.6883316]
[1752199796533,0.29728675,115690.0,115680.0,0.6883316]
[1752199797338,0.28864326,115690.0,115680.0,0.6883316]
[1752199797477,0.2972866,115690.0,115680.0,0.6883316]
[1752199797925,0.30593001,115690.0,115680.0,0.6883316]
[1752199798499,0.3145735,115690.0,115680.0,0.67214397]
[1752199799104,0.32321706,115690.0,115680.0,0.67214397]
[1752199799545,0.30593001,115690.0,115680.0,0.67214397]
[1752199800112,0.2972866,115690.0,115680.0,0.67214397]
[1752199800341,0.30593009,115690.0,115680.0,0.67214397]
[1752199800540,0.31457373,115690.0,115680.0,0.67214397]
[1752199800741,0.30593009,115690.0,115680.0,0.67214397]
[1752199801394,0.31457373,115690.0,115680.0,0.67214397]
[1752199801589,0.31457365,115690.0,115680.0,0.67214397]
[1752199801766,0.2972866,115690.0,115680.0,0.67214397]
[1752199801976,0.28,115690.0,115680.0,0.67214397]
[1752199802176,0.31454326,115690.0,115680.0,0.67214397]
[1752199802382,0.32318675,115690.0,115680.0,0.53698397]
[1752199802582,0.32318675,115690.0,115680.0,0.67210397]
[1752199802986,0.32318667,115690.0,115680.0,0.67210397]
[1752199803213,0.32318667,115690.0,115680.0,0.13620605]
[1752199803430,0.32318667,115690.0,115680.0,0.67210397]
[1752199803868,0.33183023,115690.0,115680.0,0.67210397]
[1752199804266,0.32318667,115690.0,115680.0,0.67210397]
[1752199805551,0.31454326,115690.0,115680.0,0.67210397]
[1752199805762,0.28864326,115690.0,115680.0,0.67210397]
[1752199807601,0.29728667,115690.0,115680.0,0.67210397]
[1752199808142,0.32108667,115690.0,115680.0,0.67210397]
[1752199808691,0.31244326,115690.0,115680.0,0.67210397]
[1752199808967,0.3210866,115690.0,115680.0,0.67210397]
[1752199810971,0.32973001,115690.0,115680.0,0.67210397]
[1752199811383,0.3210866,115690.0,115680.0,0.67210397]
[1752199811800,0.32973009,115690.0,115680.0,0.67210397]
[1752199811998,0.3210866,115690.0,115680.0,0.67210397]
[1752199812930,0.31244326,115690.0,115680.0,0.67210397]
[1752199813671,0.3210866,115690.0,115680.0,0.67210397]
[1752199813943,0.32973009,115690.0,115680.0,0.67210397]
[1752199814476,0.3210866,115690.0,115680.0,0.67210397]
[1752199815286,0.32973009,115690.0,115680.0,0.67210397]
[1752199815484,0.3210866,115690.0,115680.0,0.67210397]
[1752199815742,0.3210866,115690.0,115680.0,0.67695697]
[1752199816337,0.32973009,115690.0,115680.0,0.67695697]
[1752199816674,0.3210866,115690.0,115680.0,0.67695697]
[1752199816882,0.32973009,115690.0,115680.0,0.67695697]
[1752199817100,0.3210866,115690.0,115680.0,0.67695697]
[1752199818266,0.32973009,115690.0,115680.0,0.67695697]
[1752199818748,0.32973016,115690.0,115680.0,0.67695697]
[1752199818949,0.32973009,115690.0,115680.0,0.67695697]
[1752199820230,0.33837373,115690.0,115680.0,0.67695697]
[1752199820453,0.32973009,115690.0,115680.0,0.67695697]
[1752199821154,0.33837373,115690.0,115680.0,0.67695697]
[1752199821604,0.32973009,115690.0,115680.0,0.67695697]
[1752199822279,0.33837373,115690.0,115680.0,0.67695697]
[1752199822668,0.32973009,115690.0,115680.0,0.67695697]
[1752199823539,0.33837373,115690.0,115680.0,0.67695697]
[1752199824793,0.34701744,115690.0,115680.0,0.67695697]
[1752199825006,0.33837373,115690.0,115680.0,0.67695697]
[1752199825425,0.33837365,115690.0,115680.0,0.67695697]
[1752199825638,0.34701729,115690.0,115680.0,0.67695697]
[1752199826732,0.33837365,115690.0,115680.0,0.67695697]
[1752199828907,0.32973009,115690.0,115680.0,0.67695697]
[1752199829530,0.33837365,115690.0,115680.0,0.67695697]
[1752199831681,0.34701736,115690.0,115680.0,0.67695697]
[1752199831898,0.33837365,115690.0,115680.0,0.67695697]
[1752199832572,0.34701736,115690.0,115680.0,0.67695697]
[1752199832997,0.33837365,115690.0,115680.0,0.67695697]
[1752199833419,0.34701729,115690.0,115680.0,0.67695697]
[1752199834765,0.33837403,115690.0,115680.0,0.67695697]
[1752199834972,0.34701774,115690.0,115680.0,0.67695697]
[1752199835509,0.34701774,115690.0,115680.0,0.14105905]
[1752199835714,0.33837403,115690.0,115680.0,0.67695697]
[1752199836045,0.31457403,115690.0,115680.0,0.67695697]
[1752199836776,0.32321781,115690.0,115680.0,0.67695697]
[1752199836981,0.31457403,115690.0,115680.0,0.67695697]
[1752199837770,0.31457403,115690.0,115680.0,0.14105905]
[1752199838245,0.31457403,115690.0,115680.0,0.67695697]
[1752199838882,0.31457403,115690.0,115680.0,0.67875325]
[1752199839005,0.32321774,115690.0,115680.0,0.67875325]
[1752199839881,0.31457403,115690.0,115680.0,0.14105905]
[1752199840107,0.31457403,115690.0,115680.0,0.67875325]
[1752199840310,0.31457403,115690.0,115680.0,0.67859325]
[1752199840511,0.50460676,115690.0,115680.0,0.67859325]
[1752199841486,0.50460676,115690.0,115680.0,0.14089905]
[1752199841692,0.50460676,115690.0,115680.0,0.67859325]
[1752199842638,0.50460676,115690.0,115680.0,0.00593905]
[1752199842877,0.50460676,115690.0,115680.0,0.67859325]
[1752199843654,0.50460676,115690.0,115680.0,0.54363325]
[1752199843854,0.33173098,115690.0,115680.0,0.54363325]
[1752199844059,0.25,115690.0,115680.0,1.02452134]
[1752199844281,0.25,115690.0,115680.0,1.07482134]
[1752199844480,0.23963113,115690.0,115680.0,1.09102084]
[1752199844717,0.22926226,115690.0,115680.0,1.09102084]
[1752199846523,0.22926226,115690.0,115680.0,1.89756214]
[1752199846722,0.22926226,115690.0,115680.0,1.01389985]
[1752199846922,0.25,115700.0,115680.0,0.69452797]
[1752199847070,0.25,115700.0,115690.0,0.53217381]
[1752199847263,0.25,115700.0,115690.0,0.54837331]
[1752199848439,0.251,115700.0,115690.0,0.54837331]
[1752199849075,0.252,115700.0,115690.0,0.54837331]
[1752199849282,0.252,115700.0,115690.0,0.47065421]
[1752199849426,0.251,115700.0,115690.0,0.47065421]
[1752199849623,0.251,115700.0,115690.0,0.73938892]
[1752199849866,0.001,115700.0,115690.0,1.24253795]
[1752199850041,0.001,115700.0,115690.0,1.16481885]
[1752199850249,0.002,115700.0,115690.0,1.27386927]
[1752199850648,0.002,115700.0,115690.0,1.29979627]
[1752199850835,0.001,115700.0,115690.0,1.29879627]
[1752199851527,0.06902204,115710.0,115690.0,1.24799627]
[1752199851738,0.31902204,115710.0,115700.0,0.88413573]
[1752199851940,0.31902204,115710.0,115700.0,0.90033523]
[1752199852774,0.07002204,115710.0,115700.0,0.90233523]
[1752199852973,0.07102204,115710.0,115700.0,0.90233523]
[1752199853801,0.32102204,115710.0,115700.0,0.90233523]
[1752199854588,0.31065612,115710.0,115700.0,0.90233523]
[1752199855022,0.002,115710.0,115700.0,1.95853655]
[1752199855214,0.002,115710.0,115700.0,1.91279333]
[1752199855418,0.002,115710.0,115700.0,1.44526927]
[1752199855555,0.002,115710.0,115700.0,1.58010927]
[1752199855756,0.25296,115740.0,115710.0,0.3647]
[1752199855964,0.06902204,115730.0,115720.0,0.26926993]
[1752199856182,0.06902204,115730.0,115720.0,0.28546943]
[1752199856386,0.06902204,115730.0,115720.0,0.31139143]
[1752199856994,0.06902204,115730.0,115720.0,0.17655143]
[1752199857193,0.06951841,115730.0,115720.0,0.58012614]
[1752199858506,0.06951841,115730.0,115720.0,0.58212614]
[1752199858714,0.06951841,115730.0,115720.0,0.58312614]
[1752199858922,0.05915404,115730.0,115720.0,0.44828614]
[1752199859146,0.05915404,115730.0,115720.0,0.58312614]
[1752199860454,0.05915404,115730.0,115720.0,0.59199808]
[1752199861859,0.00049637,115730.0,115720.0,1.20073279]
[1752199862246,0.25,115740.0,115730.0,0.93937856]
[1752199862459,0.25,115740.0,115730.0,1.17589404]
[1752199862661,0.25,115740.0,115730.0,1.44462875]
[1752199862914,0.06969644,115770.0,115730.0,1.45436947]
[1752199863049,0.06969644,115770.0,115760.0,0.53746942]
[1752199863248,0.06969644,115770.0,115760.0,0.68842892]
[1752199863653,0.15108868,115770.0,115760.0,0.0161995]
[1752199863915,0.15108868,115770.0,115760.0,0.41969421]
[1752199863916,0.15972642,115770.0,115760.0,0.41969421]
[1752199864559,0.15972642,115770.0,115760.0,0.41958053]
[1752199864761,0.15972642,115770.0,115760.0,0.15084582]
[1752199864964,0.40972634,115770.0,115760.0,0.28482053]
[1752199865135,0.40972634,115770.0,115760.0,0.41958053]
[1752199865273,0.41836415,115770.0,115760.0,0.41958053]
[1752199865483,0.40972634,115770.0,115760.0,0.41958053]
[1752199865730,0.39245109,115770.0,115760.0,0.41958053]
[1752199865934,0.40972626,115770.0,115760.0,0.41958053]
[1752199866131,0.4010886,115770.0,115760.0,0.41958053]
[1752199866545,0.40972626,115770.0,115760.0,0.41958053]
[1752199866756,0.4010886,115770.0,115760.0,0.41958053]
[1752199866957,0.33206656,115770.0,115760.0,0.41958053]
[1752199867102,0.31479154,115770.0,115760.0,0.41958053]
[1752199867301,0.32342875,115770.0,115760.0,0.41957314]
[1752199867507,0.3061544,115770.0,115760.0,0.41957314]
[1752199867868,0.29314526,115770.0,115760.0,0.42170314]
[1752199868209,0.29514526,115770.0,115760.0,0.42170314]
[1752199868856,0.04514526,115770.0,115760.0,0.42170314]
[1752199869066,0.05580255,115770.0,115760.0,0.42170314]
[1752199869306,0.06443999,115770.0,115760.0,0.42170314]
[1752199869592,0.06443999,115770.0,115760.0,0.41953314]
[1752199869593,0.08171516,115770.0,115760.0,0.41953314]
[1752199869733,0.0760375,115770.0,115760.0,0.41953314]
[1752199869934,0.3260375,115770.0,115760.0,0.41953314]
[1752199870174,0.31739999,115770.0,115760.0,0.41953314]
[1752199870782,0.32603758,115770.0,115760.0,0.41953314]
[1752199870991,0.3260375,115770.0,115760.0,0.15079843]
[1752199871134,0.3260375,115770.0,115760.0,0.41953314]
[1752199871331,0.31739999,115770.0,115760.0,0.41953314]
[1752199872219,0.32603758,115770.0,115760.0,0.41953314]
[1752199872555,0.33467532,115770.0,115760.0,0.41953314]
[1752199872947,0.33467524,115770.0,115760.0,0.41953314]
[1752199873286,0.33467524,115770.0,115760.0,0.01607843]
[1752199873287,0.63095187,115770.0,115760.0,0.01607843]
[1752199873484,0.92788458,115770.0,115760.0,0.01607843]
[1752199873718,1.26788458,115770.0,115760.0,0.01607843]
[1752199874348,0.99914987,115770.0,115760.0,0.01607843]
[1752199874550,0.99714987,115770.0,115760.0,0.01607843]
[1752199874754,0.99914987,115770.0,115760.0,0.01607843]
[1752199874930,1.00314987,115770.0,115760.0,0.01607843]